fUST/lending_fUST_20250603
["ID","MTS","AMOUNT","RATE_DAILY","PERIOD"]
[363880397,1748907046749,-440.0,0.0001863,2]
[363880398,1748907046758,-735.8,0.0001863,2]
[363880399,1748907046767,-4845.58,0.0001863,2]
[363880400,1748907046777,-854.6,0.0001863,2]
[363880401,1748907046786,-440.0,0.0001863,2]
[363880402,1748907046795,-440.0,0.0001863,2]
[363880403,1748907046804,-537.3549395,0.0001863,2]
[363880404,1748907046814,-440.0,0.0001863,2]
[363880405,1748907046823,-1199.73,0.0001863,2]
[363880406,1748907046834,-440.0,0.0001863,2]
[363880407,1748907046843,-440.0,0.0001863,2]
[363880408,1748907046854,-493.08,0.0001863,2]
[363880409,1748907046863,-448.65,0.0001863,2]
[363880410,1748907046873,-935.32117229,0.00018728,2]
[363880411,1748907046882,-440.0,0.00018904,2]
[363880412,1748907046892,-440.0,0.00018904,2]
[363880413,1748907046901,-440.0,0.00018904,2]
[363880414,1748907046910,-440.0,0.00018904,2]
[363880415,1748907046920,-440.0,0.00018904,2]
[363880416,1748907046930,-440.0,0.00018904,2]
[363880417,1748907046939,-440.0,0.00018904,2]
[363880418,1748907046950,-340.0,0.00018904,2]
[363880419,1748907046959,-1240.54,0.00018904,2]
[363880420,1748907046970,-440.0,0.00018904,2]
[363880421,1748907046979,-440.0,0.00018904,2]
[363880422,1748907046989,-2050.09,0.00018904,2]
[363880423,1748907046998,-340.0,0.00018904,2]
[363880424,1748907047007,-440.0,0.00018904,2]
[363880425,1748907047102,-440.0,0.00018904,2]
[363880426,1748907047114,-1442.81,0.00018904,2]
[363880427,1748907047124,-440.0,0.00018904,2]
[363880428,1748907047134,-440.0,0.00018904,2]
[363880429,1748907047144,-440.0,0.00018904,2]
[363880430,1748907047153,-1440.95,0.00018904,2]
[363880431,1748907047163,-2167.57,0.00018904,2]
[363880432,1748907047172,-2580.32,0.00018904,2]
[363880433,1748907047181,-440.0,0.00018904,2]
[363880434,1748907047191,-1026.87,0.00018904,2]
[363880435,1748907047202,-565.49,0.00018904,2]
[363880436,1748907047212,-440.0,0.00018904,2]
[363880437,1748907047222,-440.0,0.00018904,2]
[363880438,1748907047231,-802.81,0.00018904,2]
[363880439,1748907047241,-440.0,0.00018904,2]
[363880440,1748907047251,-440.0,0.00018904,2]
[363880441,1748907047261,-675.33,0.00018904,2]
[363880442,1748907047271,-440.0,0.00018904,2]
[363880443,1748907047280,-440.0,0.00018904,2]
[363880444,1748907047290,-440.0,0.00018904,2]
[363880445,1748907047300,-504.7,0.00018904,2]
[363880446,1748907047311,-440.0,0.00018904,2]
[363880447,1748907047320,-440.0,0.00018904,2]
[363880448,1748907047330,-440.0,0.00018904,2]
[363880449,1748907047341,-440.0,0.00018904,2]
[363880450,1748907047351,-440.0,0.00018904,2]
[363880451,1748907047362,-440.0,0.00018904,2]
[363880452,1748907047372,-3944.08,0.00018904,2]
[363880453,1748907047381,-440.0,0.00018904,2]
[363880454,1748907047391,-440.0,0.00018904,2]
[363880455,1748907047400,-472.990524,0.00018904,2]
[363880456,1748907047410,-456.471907,0.00018904,2]
[363880457,1748907047419,-1686.91,0.00018904,2]
[363880458,1748907047429,-472.990524,0.00018904,2]
[363880459,1748907047439,-2043.01,0.00018904,2]
[363880460,1748907047449,-440.0,0.00018904,2]
[363880461,1748907047458,-754.71,0.00018904,2]
[363880462,1748907047468,-797.96,0.00018904,2]
[363880463,1748907047477,-440.0,0.00018904,2]
[363880464,1748907047487,-735.8,0.00018904,2]
[363880465,1748907047497,-4845.58,0.00018904,2]
[363880466,1748907047506,-854.6,0.00018904,2]
[363880467,1748907047516,-440.0,0.00018904,2]
[363880468,1748907047527,-440.0,0.00018904,2]
[363880469,1748907047537,-440.0,0.00018904,2]
[363880470,1748907047547,-1199.73,0.00018904,2]
[363880471,1748907047559,-286.129156,0.00018904,2]
[363880472,1748907047570,-440.0,0.00018904,2]
[363880473,1748907047580,-440.0,0.00018904,2]
[363880474,1748907047589,-286.129156,0.00018904,2]
[363880475,1748907047599,-373.158915,0.00018904,2]
[363880476,1748907047609,-373.158915,0.00018904,2]
[363880477,1748907047619,-448.65,0.00018904,2]
[363880478,1748907047629,-935.32117229,0.00018934,2]
[363880479,1748907047639,-176.5287595,0.00019014,2]
[363880480,1748907047648,-153.0,0.00019014,2]
[363880481,1748907047658,-158.5152029,0.00019014,2]
[363880482,1748907047667,-572.502888,0.00019014,2]
[363880483,1748907047678,-153.0,0.00019014,2]
[363880484,1748907047687,-158.5152029,0.00019014,2]
[363880485,1748907047697,-176.5287595,0.00019014,2]
[363880486,1748907047706,-572.502888,0.00019014,2]
[363880487,1748907047716,-158.5152029,0.00019014,2]
[363880488,1748907047726,-572.502888,0.00019014,2]
[363880489,1748907047735,-176.5287595,0.00019014,2]
[363880490,1748907047745,-153.0,0.00019014,2]
[363880491,1748907047754,-353.7844403,0.00019014,2]
[363880492,1748907047764,-346.8424236,0.00019014,2]
[363880493,1748907047774,-158.5152029,0.00019014,2]
[363880494,1748907047783,-176.5287595,0.00019014,2]
[363880495,1748907047793,-572.502888,0.00019014,2]
[363880496,1748907047803,-158.5152029,0.00019014,2]
[363880497,1748907047812,-158.0547126,0.00019014,2]
[363880498,1748907047822,-153.0,0.00019014,2]
[363880499,1748907047831,-158.5152029,0.00019014,2]
[363880500,1748907047841,-418.967871,0.00019014,2]
[363880501,1748907047851,-701.71,0.00019141,2]
[363880502,1748907047861,-935.32117229,0.00019141,2]
[363880503,1748907047870,-579.78882788,0.00019176,2]
[363880504,1748907047881,-174.184884,0.00019178,2]
[363880505,1748907047890,-440.0,0.00019178,2]
[363880506,1748907047900,-152.867208,0.00019178,2]
[363880507,1748907047910,-151.0,0.00019178,2]
[363880508,1748907047919,-250.0,0.00019178,2]
[363880509,1748907047929,-207.8674,0.00019178,2]
[363880510,1748907047939,-440.0,0.00019178,2]
[363880511,1748907047948,-207.8674,0.00019178,2]
[363880512,1748907047958,-440.0,0.00019178,2]
[363880513,1748907047968,-440.0,0.00019178,2]
[363880514,1748907047978,-330.0,0.00019178,2]
[363880515,1748907047987,-440.0,0.00019178,2]
[363880516,1748907047997,-1240.54,0.00019178,2]
[363880517,1748907048007,-330.0,0.00019178,2]
[363880518,1748907048017,-440.0,0.00019178,2]
[363880519,1748907048027,-2050.09,0.00019178,2]
[363880520,1748907048036,-330.0,0.00019178,2]
[363880521,1748907048046,-440.0,0.00019178,2]
[363880522,1748907048057,-1442.81,0.00019178,2]
[363880523,1748907048067,-330.0,0.00019178,2]
[363880524,1748907048077,-440.0,0.00019178,2]
[363880525,1748907048087,-440.0,0.00019178,2]
[363880526,1748907048096,-1440.95,0.00019178,2]
[363880527,1748907048106,-2167.57,0.00019178,2]
[363880528,1748907048115,-2580.32,0.00019178,2]
[363880529,1748907048125,-330.0,0.00019178,2]
[363880530,1748907048134,-1026.87,0.00019178,2]
[363880531,1748907048145,-565.49,0.00019178,2]
[363880532,1748907048156,-440.0,0.00019178,2]
[363880533,1748907048166,-330.0,0.00019178,2]
[363880534,1748907048176,-802.81,0.00019178,2]
[363880535,1748907048186,-330.0,0.00019178,2]
[363880536,1748907048196,-440.0,0.00019178,2]
[363880537,1748907048205,-675.33,0.00019178,2]
[363880538,1748907048215,-440.0,0.00019178,2]
[363880539,1748907048224,-330.0,0.00019178,2]
[363880540,1748907048234,-440.0,0.00019178,2]
[363880541,1748907048243,-504.7,0.00019178,2]
[363880542,1748907048255,-440.0,0.00019178,2]
[363880543,1748907048264,-440.0,0.00019178,2]
[363880544,1748907048274,-440.0,0.00019178,2]
[363880545,1748907048284,-440.0,0.00019178,2]
[363880546,1748907048294,-440.0,0.00019178,2]
[363880547,1748907048304,-440.0,0.00019178,2]
[363880548,1748907048314,-3944.08,0.00019178,2]
[363880549,1748907048323,-440.0,0.00019178,2]
[363880550,1748907048333,-440.0,0.00019178,2]
[363880551,1748907048342,-1686.91,0.00019178,2]
[363880552,1748907048351,-2043.01,0.00019178,2]
[363880553,1748907048362,-330.0,0.00019178,2]
[363880554,1748907048372,-754.71,0.00019178,2]
[363880555,1748907048381,-797.96,0.00019178,2]
[363880556,1748907048392,-440.0,0.00019178,2]
[363880557,1748907048402,-735.8,0.00019178,2]
[363880558,1748907048412,-4845.58,0.00019178,2]
[363880559,1748907048422,-854.6,0.00019178,2]
[363880560,1748907048432,-330.0,0.00019178,2]
[363880561,1748907048441,-330.0,0.00019178,2]
[363880562,1748907048451,-440.0,0.00019178,2]
[363880563,1748907048462,-1199.73,0.00019178,2]
[363880564,1748907048472,-440.0,0.00019178,2]
[363880565,1748907048482,-440.0,0.00019178,2]
[363880566,1748907048492,-448.65,0.00019178,2]
[363880567,1748907048502,-211.729469,0.00019178,2]
[363880568,1748907048512,-207.4,0.00019191,2]
[363880569,1748907048522,-500.0,0.00019191,2]
[363880570,1748907048535,-500.0,0.00019191,2]
[363880571,1748907048544,-500.0,0.00019191,2]
[363880572,1748907048554,-500.0,0.00019191,2]
[363880573,1748907048564,-500.0,0.00019191,2]
[363880574,1748907048573,-500.0,0.00019191,2]
[363880575,1748907048583,-500.0,0.00019191,2]
[363880576,1748907048593,-500.0,0.00019191,2]
[363880577,1748907048602,-500.0,0.00019191,2]
[363880578,1748907048612,-500.0,0.00019191,2]
[363880579,1748907048622,-500.0,0.00019191,2]
[363880580,1748907048632,-500.0,0.00019191,2]
[363880581,1748907048641,-500.0,0.00019191,2]
[363880582,1748907048651,-500.0,0.00019191,2]
[363880583,1748907048660,-500.0,0.00019191,2]
[363880584,1748907048670,-579.78882788,0.0001921,2]
[363880585,1748907048680,-1735.10143685,0.00019248,2]
[363880586,1748907048689,-3519.27,0.00019329,2]
[363880587,1748907048698,-30191.14888411,0.00019329,2]
[363880588,1748907048708,-935.32117229,0.00019348,2]
[363880589,1748907048719,-151.0,0.000194,2]
[363880590,1748907048729,-500.0,0.00019413,2]
[363880591,1748907048739,-500.0,0.00019413,2]
[363880592,1748907048749,-557.11807165,0.00019413,2]
[363880593,1748907048758,-500.0,0.00019413,2]
[363880594,1748907048768,-701.71,0.00019451,2]
[363880595,1748907048860,-346.62810943,0.00019452,2]
[363880596,1748907048870,-440.0,0.00019452,2]
[363880597,1748907048880,-320.0,0.00019452,2]
[363880598,1748907048890,-320.0,0.00019452,2]
[363880599,1748907048900,-440.0,0.00019452,2]
[363880600,1748907048910,-1240.54,0.00019452,2]
[363880601,1748907048920,-440.0,0.00019452,2]
[363880602,1748907048929,-2050.09,0.00019452,2]
[363880603,1748907048941,-320.0,0.00019452,2]
[363880604,1748907048950,-1442.81,0.00019452,2]
[363880605,1748907048959,-323.85,0.00019452,2]
[363880606,1748907048970,-440.0,0.00019452,2]
[363880607,1748907048979,-1440.95,0.00019452,2]
[363880608,1748907048989,-2167.57,0.00019452,2]
[363880609,1748907048999,-2580.32,0.00019452,2]
[363880610,1748907049009,-1026.87,0.00019452,2]
[363880611,1748907049019,-565.49,0.00019452,2]
[363880612,1748907049029,-440.0,0.00019452,2]
[363880613,1748907049038,-802.81,0.00019452,2]
[363880614,1748907049048,-440.0,0.00019452,2]
[363880615,1748907049058,-675.33,0.00019452,2]
[363880616,1748907049068,-440.0,0.00019452,2]
[363880617,1748907049078,-440.0,0.00019452,2]
[363880618,1748907049088,-504.7,0.00019452,2]
[363880619,1748907049099,-380.61,0.00019452,2]
[363880620,1748907049108,-290.0,0.00019452,2]
[363880621,1748907049118,-440.0,0.00019452,2]
[363880622,1748907049129,-440.0,0.00019452,2]
[363880623,1748907049139,-440.0,0.00019452,2]
[363880624,1748907049149,-439.95897274,0.00019452,2]
[363880625,1748907049160,-3944.08,0.00019452,2]
[363880626,1748907049169,-440.0,0.00019452,2]
[363880627,1748907049179,-440.0,0.00019452,2]
[363880628,1748907049190,-1686.91,0.00019452,2]
[363880629,1748907049200,-2043.01,0.00019452,2]
[363880630,1748907049211,-754.71,0.00019452,2]
[363880631,1748907049221,-797.96,0.00019452,2]
[363880632,1748907049231,-440.0,0.00019452,2]
[363880633,1748907049241,-735.8,0.00019452,2]
[363880634,1748907049251,-4845.58,0.00019452,2]
[363880635,1748907049261,-854.6,0.00019452,2]
[363880636,1748907049271,-440.0,0.00019452,2]
[363880637,1748907049282,-1199.73,0.00019452,2]
[363880638,1748907049291,-440.0,0.00019452,2]
[363880639,1748907049301,-440.0,0.00019452,2]
[363880640,1748907049311,-448.65,0.00019452,2]
[363880641,1748907049321,-500.0,0.00019473,2]
[363880642,1748907049331,-211.38915371,0.00019473,2]
[363880643,1748907049341,-584.41539273,0.00019473,2]
[363880644,1748907049351,-500.0,0.00019473,2]
[363880645,1748907049361,-500.46214006,0.00019473,2]
[363880646,1748907049371,-501.82350413,0.00019473,2]
[363880647,1748907049381,-500.4188959,0.00019473,2]
[363880648,1748907049391,-500.0,0.00019473,2]
[363880649,1748907049402,-500.0,0.00019473,2]
[363880650,1748907049412,-514.99939757,0.00019473,2]
[363880651,1748907049421,-500.0,0.00019473,2]
[363880652,1748907049431,-518.67021466,0.00019473,2]
[363880653,1748907049441,-613.63936367,0.00019473,2]
[363880654,1748907049451,-629.56515353,0.00019473,2]
[363880655,1748907049461,-500.0,0.00019473,2]
[363880656,1748907049470,-500.0,0.00019473,2]
[363880657,1748907049479,-501.28084159,0.00019473,2]
[363880658,1748907049489,-410.38160538,0.00019473,2]
[363880659,1748907049498,-526.80558913,0.00019473,2]
[363880660,1748907049507,-500.0,0.00019473,2]
[363880661,1748907049518,-500.0,0.00019483,2]
[363880662,1748907049533,-379787.89401595,0.000195,2]
[363880663,1748907049543,-579.78882788,0.00019538,2]
[363880664,1748907049553,-935.32117229,0.00019555,2]
[363880665,1748907049562,-151.0,0.000196,2]
[363880666,1748907049573,-266.796,0.00019618,2]
[363880667,1748907049583,-587.0,0.0001963,2]
[363880668,1748907049593,-151.0,0.00019726,2]
[363880669,1748907049604,-151.0,0.00019726,2]
[363880670,1748907049614,-151.0,0.00019726,2]
[363880671,1748907049624,-151.60411204,0.00019726,2]
[363880672,1748907049634,-151.0,0.00019726,2]
[363880673,1748907049643,-151.0,0.00019726,2]
[363880674,1748907049652,-151.0,0.00019726,2]
[363880675,1748907049662,-151.0,0.00019726,2]
[363880676,1748907049671,-151.0,0.00019726,2]
[363880677,1748907049680,-151.0,0.00019726,2]
[363880678,1748907049690,-151.0,0.00019726,2]
[363880679,1748907049700,-151.0,0.00019726,2]
[363880680,1748907049709,-151.0,0.00019726,2]
[363880681,1748907049719,-151.0,0.00019726,2]
[363880682,1748907049728,-151.0,0.00019726,2]
[363880683,1748907049740,-151.0,0.00019726,2]
[363880684,1748907049750,-151.0,0.00019726,2]
[363880685,1748907049760,-151.0,0.00019726,2]
[363880686,1748907049770,-151.5283339,0.00019726,2]
[363880687,1748907049779,-500.0,0.00019726,2]
[363880688,1748907049789,-151.0,0.00019726,2]
[363880689,1748907049798,-440.0,0.00019726,2]
[363880690,1748907049808,-206.847821,0.00019726,2]
[363880691,1748907049818,-206.847821,0.00019726,2]
[363880692,1748907049827,-440.0,0.00019726,2]
[363880693,1748907049837,-151.0,0.00019726,2]
[363880694,1748907049847,-1240.54,0.00019726,2]
[363880695,1748907049857,-440.0,0.00019726,2]
[363880696,1748907049867,-2050.09,0.00019726,2]
[363880697,1748907049877,-1442.81,0.00019726,2]
[363880698,1748907049886,-440.0,0.00019726,2]
[363880699,1748907049896,-1440.95,0.00019726,2]
[363880700,1748907049905,-2167.57,0.00019726,2]
[363880701,1748907049915,-2580.32,0.00019726,2]
[363880702,1748907049924,-1026.87,0.00019726,2]
[363880703,1748907049934,-565.49,0.00019726,2]
[363880704,1748907049944,-440.0,0.00019726,2]
[363880705,1748907049953,-802.81,0.00019726,2]
[363880706,1748907049962,-440.0,0.00019726,2]
[363880707,1748907049973,-675.33,0.00019726,2]
[363880708,1748907049983,-440.0,0.00019726,2]
[363880709,1748907049993,-440.0,0.00019726,2]
[363880710,1748907050002,-504.7,0.00019726,2]
[363880711,1748907050012,-440.0,0.00019726,2]
[363880712,1748907050022,-412.842266,0.00019726,2]
[363880713,1748907050032,-151.0,0.00019726,2]
[363880714,1748907050041,-412.842266,0.00019726,2]
[363880715,1748907050051,-440.0,0.00019726,2]
[363880716,1748907050061,-440.0,0.00019726,2]
[363880717,1748907050071,-3944.08,0.00019726,2]
[363880718,1748907050081,-440.0,0.00019726,2]
[363880719,1748907050090,-440.0,0.00019726,2]
[363880720,1748907050099,-472.990524,0.00019726,2]
[363880721,1748907050108,-472.990524,0.00019726,2]
[363880722,1748907050117,-1686.91,0.00019726,2]
[363880723,1748907050127,-2043.01,0.00019726,2]
[363880724,1748907050136,-754.71,0.00019726,2]
[363880725,1748907050145,-797.96,0.00019726,2]
[363880726,1748907050155,-440.0,0.00019726,2]
[363880727,1748907050165,-735.8,0.00019726,2]
[363880728,1748907050175,-4845.58,0.00019726,2]
[363880729,1748907050185,-854.6,0.00019726,2]
[363880730,1748907050195,-440.0,0.00019726,2]
[363880731,1748907050205,-1199.73,0.00019726,2]
[363880732,1748907050214,-286.129156,0.00019726,2]
[363880733,1748907050224,-440.0,0.00019726,2]
[363880734,1748907050233,-440.0,0.00019726,2]
[363880735,1748907050243,-286.129156,0.00019726,2]
[363880736,1748907050252,-373.158915,0.00019726,2]
[363880737,1748907050262,-373.158915,0.00019726,2]
[363880738,1748907050272,-448.65,0.00019726,2]
[363880739,1748907050282,-500.0,0.00019753,2]
[363880740,1748907050292,-151.0,0.00019753,2]
[363880741,1748907050302,-935.32117229,0.00019762,2]
[363880742,1748907050312,-500.0,0.00019781,2]
[363880743,1748907050322,-151.0,0.000198,2]
[363880744,1748907050332,-503.09515564,0.00019808,2]
[363880745,1748907050341,-701.71,0.00019835,2]
[363880746,1748907050351,-579.78882788,0.00019837,2]
[363880747,1748907050361,-500.89721394,0.00019892,2]
[363880748,1748907050370,-500.0,0.00019892,2]
[363880749,1748907050380,-1000.0,0.00019964,2]
[363880750,1748907050389,-935.32117229,0.00019969,2]
[363880751,1748907050399,-151.0,0.0002,2]
[363880752,1748907050486,-151.0,0.0002,2]
[363880753,1748907050496,-151.0,0.0002,2]
[363880754,1748907050506,-168.789138,0.0002,2]
[363880755,1748907050516,-168.789138,0.0002,2]
[363880756,1748907050528,-151.0,0.0002,2]
[363880757,1748907050538,-151.0,0.0002,2]
[363880758,1748907050547,-151.0,0.0002,2]
[363880759,1748907050558,-151.0,0.0002,2]
[363880760,1748907050568,-440.0,0.0002,2]
[363880761,1748907050577,-151.0,0.0002,2]
[363880762,1748907050586,-440.0,0.0002,2]
[363880763,1748907050596,-151.0,0.0002,2]
[363880764,1748907050606,-1240.54,0.0002,2]
[363880765,1748907050616,-440.0,0.0002,2]
[363880766,1748907050626,-369.208876,0.0002,2]
[363880767,1748907050635,-369.208876,0.0002,2]
[363880768,1748907050645,-2050.09,0.0002,2]
[363880769,1748907050655,-1442.81,0.0002,2]
[363880770,1748907050664,-300.0,0.0002,2]
[363880771,1748907050673,-1440.95,0.0002,2]
[363880772,1748907050683,-2167.57,0.0002,2]
[363880773,1748907050692,-2580.32,0.0002,2]
[363880774,1748907050700,-1015.0,0.0002,2]
[363880775,1748907050708,-1026.87,0.0002,2]
[363880776,1748907050717,-565.49,0.0002,2]
[363880777,1748907050726,-440.0,0.0002,2]
[363880778,1748907050734,-802.81,0.0002,2]
[363880779,1748907050742,-440.0,0.0002,2]
[363880780,1748907050750,-675.33,0.0002,2]
[363880781,1748907050759,-440.0,0.0002,2]
[363880782,1748907050767,-440.0,0.0002,2]
[363880783,1748907050776,-504.7,0.0002,2]
[363880784,1748907050785,-440.0,0.0002,2]
[363880785,1748907050793,-412.842266,0.0002,2]
[363880786,1748907050803,-151.0,0.0002,2]
[363880787,1748907050813,-412.842266,0.0002,2]
[363880788,1748907050822,-440.0,0.0002,2]
[363880789,1748907050832,-440.0,0.0002,2]
[363880790,1748907050841,-3944.08,0.0002,2]
[363880791,1748907050852,-440.0,0.0002,2]
[363880792,1748907050861,-440.0,0.0002,2]
[363880793,1748907050871,-1686.91,0.0002,2]
[363880794,1748907050880,-2043.01,0.0002,2]
[363880795,1748907050890,-754.71,0.0002,2]
[363880796,1748907050900,-797.96,0.0002,2]
[363880797,1748907050910,-440.0,0.0002,2]
[363880798,1748907050920,-735.8,0.0002,2]
[363880799,1748907050929,-4845.58,0.0002,2]
[363880800,1748907050939,-854.6,0.0002,2]
[363880801,1748907050948,-440.0,0.0002,2]
[363880802,1748907050958,-1199.73,0.0002,2]
[363880803,1748907050968,-440.0,0.0002,2]
[363880804,1748907050977,-440.0,0.0002,2]
[363880805,1748907050987,-151.0,0.0002,2]
[363880806,1748907050996,-448.65,0.0002,2]
[363880807,1748907051005,-371.4387525,0.00020021,2]
[363880808,1748907051015,-1000.0,0.00020021,2]
[363880809,1748907051024,-579.78882788,0.00020044,2]
[363880810,1748907051034,-916.384495,0.00020136,3]
[363880811,1748907051043,-935.32117229,0.00020176,2]
[363880812,1748907051052,-269.996266,0.00020187,2]
[363880813,1748907051062,-151.0,0.000202,4]
[363880814,1748907051072,-701.71,0.00020272,2]
[363880815,1748907051081,-440.0,0.00020273,2]
[363880816,1748907051091,-440.0,0.00020273,2]
[363880817,1748907051102,-1240.54,0.00020273,2]
[363880818,1748907051112,-440.0,0.00020273,2]
[363880819,1748907051122,-2050.09,0.00020273,2]
[363880820,1748907051132,-1442.81,0.00020273,2]
[363880821,1748907051142,-1440.95,0.00020273,2]
[363880822,1748907051152,-2167.57,0.00020273,2]
[363880823,1748907051161,-2580.32,0.00020273,2]
[363880824,1748907051171,-1026.87,0.00020273,2]
[363880825,1748907051181,-565.49,0.00020273,2]
[363880826,1748907051191,-440.0,0.00020273,2]
[363880827,1748907051201,-802.81,0.00020273,2]
[363880828,1748907051211,-440.0,0.00020273,2]
[363880829,1748907051221,-675.33,0.00020273,2]
[363880830,1748907051231,-440.0,0.00020273,2]
[363880831,1748907051241,-440.0,0.00020273,2]
[363880832,1748907051251,-504.7,0.00020273,2]
[363880833,1748907051261,-440.0,0.00020273,2]
[363880834,1748907051275,-440.0,0.00020273,2]
[363880835,1748907051285,-440.0,0.00020273,2]
[363880836,1748907051295,-3944.08,0.00020273,2]
[363880837,1748907051305,-440.0,0.00020273,2]
[363880838,1748907051315,-440.0,0.00020273,2]
[363880839,1748907051324,-1686.91,0.00020273,2]
[363880840,1748907051334,-2043.01,0.00020273,2]
[363880841,1748907051344,-754.71,0.00020273,2]
[363880842,1748907051354,-797.96,0.00020273,2]
[363880843,1748907051364,-440.0,0.00020273,2]
[363880844,1748907051374,-4845.58,0.00020273,2]
[363880845,1748907051384,-735.8,0.00020273,2]
[363880846,1748907051394,-854.6,0.00020273,2]
[363880847,1748907051403,-440.0,0.00020273,2]
[363880848,1748907051415,-1199.73,0.00020273,2]
[363880849,1748907051425,-440.0,0.00020273,2]
[363880850,1748907051434,-440.0,0.00020273,2]
[363880851,1748907051443,-448.65,0.00020273,2]
[363880852,1748907051454,-579.78882788,0.00020302,2]
[363880853,1748907051464,-935.32117229,0.00020383,3]
[363880854,1748907051476,-500.43144808,0.00020504,2]
[363880855,1748907051485,-500.0,0.00020504,2]
[363880856,1748907051496,-622.45760105,0.00020504,2]
[363880857,1748907051507,-500.0,0.00020504,2]
[363880858,1748907051517,-500.0,0.00020504,2]
[363880859,1748907051532,-500.0,0.00020504,2]
[363880860,1748907051542,-500.0,0.00020504,2]
[363880861,1748907051551,-500.0,0.00020504,2]
[363880862,1748907051562,-643.09418952,0.00020504,2]
[363880863,1748907051573,-500.94988306,0.00020504,2]
[363880864,1748907051582,-500.0,0.00020504,2]
[363880865,1748907051592,-500.0,0.00020504,2]
[363880866,1748907051601,-500.0,0.00020504,2]
[363880867,1748907051611,-600.0,0.00020504,2]
[363880868,1748907051621,-332.94372081,0.00020547,2]
[363880869,1748907051630,-243.04537311,0.00020547,2]
[363880870,1748907051640,-440.0,0.00020547,2]
[363880871,1748907051652,-332.94372081,0.00020547,2]
[363880872,1748907051662,-1240.54,0.00020547,2]
[363880873,1748907051672,-440.0,0.00020547,2]
[363880874,1748907051682,-2050.09,0.00020547,2]
[363880875,1748907051692,-1442.81,0.00020547,2]
[363880876,1748907051703,-1440.95,0.00020547,2]
[363880877,1748907051712,-2167.57,0.00020547,2]
[363880878,1748907051722,-2580.32,0.00020547,2]
[363880879,1748907051731,-1026.87,0.00020547,2]
[363880880,1748907051741,-565.49,0.00020547,2]
[363880881,1748907051751,-280.0,0.00020547,2]
[363880882,1748907051761,-802.81,0.00020547,2]
[363880883,1748907051770,-440.0,0.00020547,2]
[363880884,1748907051780,-675.33,0.00020547,2]
[363880885,1748907051789,-440.0,0.00020547,2]
[363880886,1748907051798,-440.0,0.00020547,2]
[363880887,1748907051809,-504.7,0.00020547,2]
[363880888,1748907051819,-440.0,0.00020547,2]
[363880889,1748907051828,-440.0,0.00020547,2]
[363880890,1748907051838,-475.42,0.00020547,2]
[363880891,1748907051848,-3944.08,0.00020547,2]
[363880892,1748907051858,-440.0,0.00020547,2]
[363880893,1748907051867,-440.0,0.00020547,2]
[363880894,1748907051877,-1686.91,0.00020547,2]
[363880895,1748907051887,-2043.01,0.00020547,2]
[363880896,1748907051897,-754.71,0.00020547,2]